fUST/lending_fUST_20240128
["ID","MTS","AMOUNT","RATE_DAILY","PERIOD"]
[312879560,1706395839447,-426.82086975,0.00029999,2]
[312879561,1706395839457,-500.0,0.00029999,2]
[312879562,1706395839466,-500.0,0.00029999,2]
[312879563,1706395839475,-500.0,0.00029999,2]
[312879564,1706395839483,-500.0,0.00029999,2]
[312879565,1706395839492,-500.0,0.00029999,2]
[312879566,1706395839501,-500.0,0.00029999,2]
[312879567,1706395839510,-500.0,0.00029999,2]
[312879568,1706395839521,-500.0,0.00029999,2]
[312879569,1706395839530,-500.0,0.00029999,2]
[312879570,1706395839539,-650.0,0.00029999,2]
[312879571,1706395839549,-500.0,0.00029999,2]
[312879572,1706395839558,-500.0,0.00029999,2]
[312879573,1706395839567,-500.0,0.00029999,2]
[312879574,1706395839577,-500.0,0.00029999,2]
[312879575,1706395839586,-500.0,0.00029999,2]
[312879576,1706395839596,-500.0,0.00029999,2]
[312879577,1706395839606,-443.57107396,0.00029999,2]
[312879578,1706395839616,-500.0,0.00029999,2]
[312879579,1706395839626,-500.0,0.00029999,2]
[312879580,1706395839636,-500.0,0.00029999,2]
[312879581,1706395839646,-409.90360748,0.00029999,2]
[312879582,1706395839656,-500.0,0.00029999,2]
[312879583,1706395839666,-500.0,0.00029999,2]
[312879584,1706395839676,-500.0,0.00029999,2]
[312879585,1706395839686,-500.0,0.00029999,2]
[312879586,1706395839696,-207.74651376,0.00029999,2]
[312879587,1706395839705,-500.0,0.00029999,2]
[312879588,1706395839715,-276.62024981,0.00029999,2]
[312879589,1706395839724,-500.0,0.00029999,2]
[312879590,1706395839733,-500.0,0.00029999,2]
[312879591,1706395839742,-500.0,0.00029999,2]
[312879592,1706395839752,-500.0,0.00029999,2]
[312879593,1706395839762,-500.0,0.00029999,2]
[312879594,1706395839771,-500.0,0.00029999,2]
[312879595,1706395839783,-500.0,0.00029999,2]
[312879596,1706395839791,-500.0,0.00029999,2]
[312879597,1706395839802,-500.0,0.00029999,2]
[312879598,1706395839813,-326.11960256,0.00029999,2]
[312879599,1706395839824,-500.0,0.00029999,2]
[312879600,1706395839833,-500.0,0.00029999,2]
[312879601,1706395839844,-500.0,0.00029999,2]
[312879602,1706395839854,-500.0,0.00029999,2]
[312879603,1706395839863,-500.0,0.00029999,2]
[312879604,1706395839874,-500.0,0.00029999,2]
[312879605,1706395839883,-500.0,0.00029999,2]
[312879606,1706395839894,-500.0,0.00029999,2]
[312879607,1706395839903,-500.0,0.00029999,2]
[312879608,1706395839914,-500.0,0.00029999,2]
[312879609,1706395839925,-500.0,0.00029999,2]
[312879610,1706395839933,-500.0,0.00029999,2]
[312879611,1706395839945,-500.0,0.00029999,2]
[312879612,1706395839954,-500.0,0.00029999,2]
[312879613,1706395839964,-500.0,0.00029999,2]
[312879614,1706395839974,-500.0,0.00029999,2]
[312879615,1706395839983,-500.0,0.00029999,2]
[312879616,1706395839993,-500.0,0.00029999,2]
[312879617,1706395840002,-598.38,0.00029999,2]
[312879618,1706395840012,-500.0,0.00029999,2]
[312879619,1706395840021,-500.0,0.00029999,2]
[312879620,1706395840030,-500.0,0.00029999,2]
[312879621,1706395840040,-500.0,0.00029999,2]
[312879622,1706395840050,-500.0,0.00029999,2]
[312879623,1706395840060,-500.0,0.00029999,2]
[312879624,1706395840071,-500.0,0.00029999,2]
[312879625,1706395840080,-500.0,0.00029999,2]
[312879626,1706395840089,-500.0,0.00029999,2]
[312879627,1706395840098,-500.0,0.00029999,2]
[312879628,1706395840107,-500.0,0.00029999,2]
[312879629,1706395840116,-500.0,0.00029999,2]
[312879630,1706395840125,-500.0,0.00029999,2]
[312879631,1706395840134,-500.0,0.00029999,2]
[312879632,1706395840144,-500.0,0.00029999,2]
[312879633,1706395840154,-500.0,0.00029999,2]
[312879634,1706395840163,-500.0,0.00029999,2]
[312879635,1706395840172,-500.0,0.00029999,2]
[312879636,1706395840181,-500.0,0.00029999,2]
[312879637,1706395840190,-500.0,0.00029999,2]
[312879638,1706395840200,-500.0,0.00029999,2]
[312879639,1706395840209,-500.0,0.00029999,2]
[312879640,1706395840219,-552.90217806,0.00029999,2]
[312879641,1706395840228,-500.0,0.00029999,2]
[312879642,1706395840237,-500.0,0.00029999,2]
[312879643,1706395840246,-500.0,0.00029999,2]
[312879644,1706395840255,-500.0,0.00029999,2]
[312879645,1706395840264,-500.0,0.00029999,2]
[312879646,1706395840274,-500.0,0.00029999,2]
[312879647,1706395840283,-289.58224829,0.00029999,2]
[312879648,1706395840292,-500.0,0.00029999,2]
[312879649,1706395840301,-500.0,0.00029999,2]
[312879650,1706395840311,-269.6467633,0.00029999,2]
[312879651,1706395840320,-500.0,0.00029999,2]
[312879652,1706395840329,-500.0,0.00029999,2]
[312879653,1706395840338,-500.0,0.00029999,2]
[312879654,1706395840347,-500.0,0.00029999,2]
[312879655,1706395840355,-500.0,0.00029999,2]
[312879656,1706395840365,-500.0,0.00029999,2]
[312879657,1706395840374,-500.0,0.00029999,2]
[312879658,1706395840382,-500.0,0.00029999,2]
[312879659,1706395840391,-500.0,0.00029999,2]
[312879660,1706395840400,-500.0,0.00029999,2]
[312879661,1706395840409,-500.0,0.00029999,2]
[312879663,1706395840418,-500.0,0.00029999,2]
[312879665,1706395840427,-500.0,0.00029999,2]
[312879667,1706395840436,-500.0,0.00029999,2]
[312879668,1706395840446,-500.0,0.00029999,2]
[312879669,1706395840457,-500.0,0.00029999,2]
[312879670,1706395840467,-170.55288916,0.00029999,2]
[312879671,1706395840477,-500.0,0.00029999,2]
[312879672,1706395840486,-500.0,0.00029999,2]
[312879673,1706395840495,-500.0,0.00029999,2]
[312879674,1706395840504,-190.08273826,0.0003,3]
[312879675,1706395840513,-2903.83996079,0.0003,7]
[312879676,1706395840523,-2850.44166112,0.0003,2]
[312879677,1706395840534,-4577.70352548,0.0003,3]
[312879678,1706395840544,-2322.63899866,0.0003,4]
[312879679,1706395840553,-155.01860223,0.0003,4]
[312879680,1706395840563,-408.1017874,0.0003,4]
[312879681,1706395840572,-4292.55674097,0.0003,4]
[312879682,1706395840581,-1027.50463707,0.0003,2]
[312879683,1706395840590,-146331.23431988,0.0003,4]
[312879684,1706395840600,-24.82044294,0.0003,2]
[312879685,1706395840614,-2054.71936061,0.0003,2]
[312879686,1706395840623,-689.09430435,0.0003,4]
[312879687,1706395840633,-155.01860223,0.0003,4]
[312879688,1706395840643,-195.57103754,0.0003,2]
[312879689,1706395840655,-309.87922767,0.0003,2]
[312879690,1706395840664,-155.01705188,0.0003,4]
[312879691,1706395840673,-1827.38712364,0.0003,2]
[312879692,1706395840683,-155.01705188,0.0003,4]
[312879693,1706395840694,-244.44828906,0.0003,4]
[312879694,1706395840704,-4416.69747402,0.0003,2]
[312879695,1706395840715,-355.39301144,0.0003,2]
[312879696,1706395840724,-209.32289596,0.0003,4]
[312879697,1706395840735,-90.67710404,0.0003,4]
[312879698,1706395840744,-151.0,0.0003,2]
[312879699,1706395840823,-151.0,0.0003,2]
[312879700,1706395840832,-212.0,0.0003,2]
[312879701,1706395840841,-151.0,0.0003,2]
[312879702,1706395840849,-151.754742,0.0003,2]
[312879703,1706395840859,-534.186797,0.0003,2]
[312879704,1706395840867,-534.186797,0.0003,2]
[312879705,1706395840877,-3433.62752541,0.0003,2]
[312879712,1706395841454,-1727.55207306,0.00021368,2]
[312879742,1706395843288,-622.93575481,0.00021368,2]
[312879760,1706395846403,-2684.24807163,0.00021368,2]
[312879767,1706396067102,2136.29786649,0.0002,5]
[312879874,1706397039357,-639.10324176,0.00019983,2]
[312879876,1706397039368,-1583.7528565,0.00019984,2]
[312879877,1706397039380,-155.01860223,0.0002,2]
[312879878,1706397039393,-150.4,0.0002,2]
[312879879,1706397039404,-1046.85514505,0.0002,2]
[312879880,1706397039417,-679.3029243,0.0002,2]
[312879881,1706397039431,-1199.09633829,0.0002,2]
[312879882,1706397039443,-300.0,0.00021368,2]
[312879883,1706397039455,-169.453169,0.0002186,2]
[312879884,1706397039467,-168.404727,0.00021864,2]
[312879885,1706397039480,-166.666666,0.00021918,2]
[312879886,1706397039492,-293.70793193,0.00022,4]
[312879887,1706397039505,-155.01860223,0.00022,2]
[312879888,1706397039518,-2036.12411825,0.00022,2]
[312879889,1706397039530,-166.666666,0.00022447,2]
[312879890,1706397039542,-166.666666,0.00022976,2]
[312879891,1706397039555,-1126.61186834,0.00022999,2]
[312879931,1706397046507,-426.38170713,0.00022446,2]
[312879932,1706397046518,-2059.26080567,0.00022999,2]
[312879933,1706397046565,-786.11152124,0.00022999,2]
[312879934,1706397046576,-235.50927871,0.00023,2]
[312880019,1706398238643,-270.76979409,0.00019971,2]
[312880123,1706398241871,-1312.98306241,0.00019971,2]
[312880125,1706398241882,-300.0,0.0002,2]
[312880127,1706398241893,-1199.09633829,0.0002,2]
[312880129,1706398241902,-679.3029243,0.0002,2]
[312880131,1706398241911,-3558.66984256,0.00020899,2]
[312880133,1706398241920,-166.666666,0.00021918,2]
[312880135,1706398241929,-168.197658,0.00021972,2]
[312880137,1706398241938,-2036.12411825,0.00022,2]
[312880139,1706398241947,-426.38170713,0.00022,2]
[312880141,1706398241956,-3971.98419525,0.00022,2]
[312880143,1706398241965,-166.666666,0.00022471,2]
[312880145,1706398241974,-155.01860223,0.00023,2]
[312880147,1706398241983,-155.01860223,0.00023,2]
[312880149,1706398241992,-303.74433034,0.00023,2]
[312880151,1706398242001,-1416.67721386,0.00023,2]
[312880153,1706398242010,-9947.92180076,0.00023,2]
[312880155,1706398242019,-166.666666,0.00023025,2]
[312880157,1706398242028,-166.666666,0.00023579,2]
[312880159,1706398242038,-166.666666,0.00024132,2]
[312880161,1706398242046,-166.666666,0.00024686,2]
[312880163,1706398242056,-199.55098898,0.00024998,2]
[312880165,1706398242065,-1243.15127385,0.00024998,2]
[312880167,1706398242074,-158.20346316,0.00024998,2]
[312880169,1706398242083,-297.90107281,0.00024998,2]
[312880171,1706398242092,-1500.90139842,0.00025,2]
[312880173,1706398242101,-7649.9786433,0.00025,2]
[312880175,1706398242110,-6735.22109662,0.00025,2]
[312880177,1706398242119,-1003.22663842,0.00025,2]
[312880179,1706398242128,-4727.98807036,0.00025,2]
[312880181,1706398242136,-155.01860223,0.00025,2]
[312880183,1706398242145,-2908.5811352,0.00025297,2]
[312880185,1706398242154,-3558.66984256,0.00025899,2]
[312880187,1706398242163,-241.485214,0.00026,2]
[312880189,1706398242172,-158.56416614,0.0002627,2]
[312880191,1706398242181,-4576.38,0.00026338,3]
[312880193,1706398242190,-6589.98,0.00026348,3]
[312880195,1706398242199,-5491.65,0.00026348,3]
[312880197,1706398242208,-14185.35969811,0.00026358,2]
[312880700,1706398512771,1978.00000001,0.00031,21]
[312880701,1706398589983,1581.0,0.00031,17]
[312880702,1706398634246,1879.91938952,0.00016,2]
[312880721,1706399432764,-688.5172537,0.00015967,2]
[312880722,1706399432774,-453.1775686,0.00015968,2]
[312880723,1706399432783,-639.10324176,0.00015968,2]
[312880724,1706399432793,-171.07208762,0.00015969,2]
[312880725,1706399432802,-401.07558296,0.00015969,2]
[312880726,1706399432818,-122.2661027,0.00015969,2]
[312880727,1706399432828,-155.01860223,0.0001597,2]
[312880728,1706399432837,-265.67702683,0.00015971,2]
[312880729,1706399432847,-2040.63936826,0.00015971,2]
[312880730,1706399432856,-8120.08061048,0.00016,2]
[312880731,1706399432866,-155.01860223,0.00016,2]
[312880732,1706399432875,-1583.7528565,0.00019,2]
[312880733,1706399432885,-158.56416615,0.000199,2]
[312880734,1706399432894,-18743.99,0.00019957,3]
[312880735,1706399432903,-15619.99,0.00019957,3]
[312880736,1706399432913,-39553.37972187,0.00019967,2]
[312880777,1706399437917,-41702.95175473,0.00019967,2]
[312880779,1706399437927,-12884.01,0.00019968,3]
[312880781,1706399437936,-155.10075657,0.0002,2]
[312880783,1706399437945,-679.3029243,0.0002,2]
[312880785,1706399437953,-1199.09633829,0.0002,2]
[312880787,1706399437963,-1046.85514505,0.0002,2]
[312880789,1706399437972,-309.95093829,0.00021481,2]
[312880791,1706399437981,-541.4543357,0.00021492,2]
[312880793,1706399437990,-310.03565411,0.00021899,2]
[312880795,1706399437999,-625.17876758,0.00021899,2]
[312880797,1706399438008,-194.95909796,0.00021899,2]
[312880799,1706399438019,-522.50744065,0.00021899,2]
[312880801,1706399438027,-181.11768672,0.00021899,2]
[312880803,1706399438036,-3921.59583547,0.000219,2]
[312880806,1706399438045,-155.40417859,0.00021909,2]
[312880809,1706399438054,-155.37359722,0.00021909,2]
[312880812,1706399438063,-155.14803687,0.00021909,2]
[312880815,1706399438074,-1576.73391587,0.00021909,2]
[312880818,1706399438082,-247.50946715,0.00021909,2]
[312880821,1706399438091,-244.16390159,0.0002191,2]
[312880823,1706399438100,-166.666666,0.00021918,2]
[312880826,1706399438109,-164.91117527,0.0002192,2]
[312880829,1706399438118,-1267.85460751,0.0002192,2]
[312880832,1706399438127,-156.28562946,0.0002192,2]
[312880835,1706399438136,-301.91875218,0.0002192,2]
[312880837,1706399438145,-155.02015262,0.0002192,2]
[312880839,1706399438154,-168.99927393,0.0002192,2]
[312880840,1706399438163,-200.0,0.0002192,2]
[312880841,1706399438173,-259.07239837,0.0002192,2]
[312880842,1706399438183,-5611.7112358,0.00021921,2]
[312880843,1706399438193,-2706.67374614,0.0002193,2]
[312880845,1706399438202,-171.9740857,0.0002193,2]
[312880847,1706399438211,-329.79784935,0.00021931,2]
[312880849,1706399438220,-500.0,0.00021931,2]
[312880850,1706399438231,-243.3365684,0.00021931,2]
[312880851,1706399438240,-166.80502533,0.00021931,2]
[312880853,1706399438249,-521.0,0.00021932,2]
[312880855,1706399438259,-1294.67927842,0.00021932,2]
[312880857,1706399438268,-22492.79,0.00021933,3]
[312880859,1706399438277,-5354.15772283,0.00021943,2]
[312880861,1706399438286,-29428.34065491,0.00021943,2]
[312880862,1706399438295,-617.20703081,0.00021955,2]
[312880864,1706399438304,-594.03896551,0.00021997,2]
[312880866,1706399438314,-264.83192052,0.00021997,2]
[312880867,1706399438323,-229.68845116,0.00021998,2]
[312880868,1706399438332,-2036.12411825,0.00022,2]
[312880869,1706399438343,-3971.98419525,0.00022,2]
[312880870,1706399438353,-426.38170713,0.00022,2]
[312880871,1706399438362,-164.09330822,0.00022,2]
[312880872,1706399438371,-327.61566675,0.00022,2]
[312880873,1706399438379,-293.70793193,0.00022,4]
[312880874,1706399438389,-169.278428,0.00022399,2]
[312880875,1706399438398,-166.666666,0.00022431,2]
[312880876,1706399438407,-166.666666,0.00022944,2]
[312880877,1706399438416,-300.0,0.00023,2]
[312880878,1706399438425,-1416.67721386,0.00023,2]
[312880879,1706399438434,-9947.92180076,0.00023,2]
[312880880,1706399438442,-166.666666,0.00023456,2]
[312880881,1706399438451,-158.56416615,0.00023935,2]
[312880882,1706399438460,-166.666666,0.00023969,2]
[312880883,1706399438470,-4017.99473319,0.00024,2]
[312880884,1706399438479,-2471.53364658,0.00024258,2]
[312880885,1706399438488,-166.666666,0.00024482,2]
[312880886,1706399438497,-380.0,0.00024658,2]
[312880887,1706399438506,-498.87930977,0.0002496,5]
[312880888,1706399438515,-500.0,0.00024999,2]
[312880889,1706399438524,-500.0,0.00024999,2]
[312880890,1706399438533,-500.0,0.00024999,2]
[312880891,1706399438542,-500.0,0.00024999,2]
[312880892,1706399438551,-500.0,0.00024999,2]
[312880893,1706399438561,-500.0,0.00024999,2]
[312880894,1706399438570,-619.87643609,0.00024999,2]
[312880895,1706399438581,-7649.9786433,0.00025,2]
[312880896,1706399438590,-4727.98807036,0.00025,2]
[312880897,1706399438600,-1958.72935728,0.00025,2]
[312880898,1706399438609,-155.02015262,0.00025,2]
[312880899,1706399438618,-680.67452781,0.00025,2]
[312880900,1706399438627,-260.27250039,0.00025,2]
[312880901,1706399438636,-167.80993341,0.00025,2]
[312880902,1706399438646,-851.06760442,0.00025,2]
[312880903,1706399438655,-281.54941248,0.00026,2]
[312880904,1706399438664,-35814.64030189,0.00026358,2]
[312880905,1706399438673,-168.32443934,0.00026358,2]
[312880906,1706399438684,-151.0,0.00026358,2]
[312880907,1706399438693,-151.0,0.00026358,2]
[312880908,1706399438702,-154.69686,0.00026358,2]
[312880909,1706399438712,-480.768117,0.00026358,2]
[312880910,1706399438721,-480.768117,0.00026358,2]
[312880911,1706399438730,-3539.968714,0.00026358,2]
[312880912,1706399438739,-3539.968714,0.00026358,2]
[312880913,1706399438748,-151.0,0.00026358,2]
[312880914,1706399438757,-7449.883539,0.00026358,2]
[312880915,1706399438766,-7449.883539,0.00026358,2]
[312880916,1706399438775,-50000.0,0.0002636,2]
[312880917,1706399438784,-151.0,0.0002636,2]
[312880918,1706399438793,-151.0,0.0002636,2]
[312880919,1706399438802,-480.768117,0.0002636,2]
[312880920,1706399438811,-480.768117,0.0002636,2]
[312880921,1706399438820,-3539.968714,0.0002636,2]
[312880922,1706399438829,-3539.968714,0.0002636,2]
[312880923,1706399438838,-151.0,0.0002636,2]
[312880924,1706399438847,-7449.883539,0.0002636,2]
[312880925,1706399438857,-7449.883539,0.0002636,2]
[312880926,1706399438866,-253.68761465,0.00026369,2]
[312880927,1706399438875,-50000.0,0.0002637,2]
[312880928,1706399438884,-151.0,0.0002637,2]
[312880929,1706399438893,-166.92294,0.0002637,2]
[312880930,1706399438902,-166.92294,0.0002637,2]
[312880931,1706399438911,-151.0,0.0002637,2]
[312880932,1706399438920,-480.768117,0.0002637,2]
[312880933,1706399438929,-480.768117,0.0002637,2]
[312880934,1706399438938,-3539.968714,0.0002637,2]
[312880935,1706399438947,-3539.968714,0.0002637,2]
[312880936,1706399438955,-151.0,0.0002637,2]
[312880937,1706399438964,-7449.883539,0.0002637,2]
[312880938,1706399438973,-7449.883539,0.0002637,2]
[312880939,1706399438982,-150.321,0.00026453,2]
[312880940,1706399438992,-15633.02905683,0.00026772,2]
[312880941,1706399439001,-152.299742,0.00026772,2]
[312880942,1706399439010,-480.768117,0.00026772,2]
[312880943,1706399439020,-480.768117,0.00026772,2]
[312880944,1706399439029,-3539.968714,0.00026772,2]
[312880945,1706399439039,-3539.968714,0.00026772,2]
[312880946,1706399439048,-151.0,0.00026772,2]
[312880947,1706399439058,-7449.883539,0.00026772,2]
[312880948,1706399439067,-7449.883539,0.00026772,2]
[312880949,1706399439077,-199.3339408,0.00026849,2]
[312880950,1706399439086,-290.6944281,0.00027,2]
[312880951,1706399439095,-151.0,0.0002714,2]
[312880952,1706399439106,-645.76798192,0.0002728,2]
[312880953,1706399439116,-155.0,0.00027397,2]
[312880954,1706399439125,-582.267551,0.00027397,2]
[312880955,1706399439134,-1901.44944296,0.000275,2]
[312880956,1706399439143,-153.0,0.00027671,2]
[312880957,1706399439153,-199.3339408,0.00027671,2]
[312880958,1706399439244,-1000.0,0.00027854,3]
[312880959,1706399439254,-1017.91632499,0.00027854,3]
[312880960,1706399439267,-500.0,0.00027854,2]
[312880961,1706399439276,-500.0,0.00027854,2]
[312880962,1706399439286,-500.0,0.00027854,2]
[312880963,1706399439295,-500.0,0.00027854,2]
[312880964,1706399439304,-500.0,0.00027854,2]
[312880965,1706399439313,-500.0,0.00027854,2]
[312880966,1706399439323,-190.40084948,0.00027854,2]
[312880967,1706399439332,-500.0,0.00027854,2]
[312880968,1706399439341,-376.82086975,0.00027854,2]
[312880969,1706399439350,-382.05528892,0.00027854,2]
[312880970,1706399439359,-500.0,0.00027854,2]
[312880971,1706399439368,-500.0,0.00027854,2]
[312880972,1706399439377,-500.0,0.00027854,2]
[312880973,1706399439386,-500.0,0.00027854,2]
[312880974,1706399439395,-500.0,0.00027854,2]
[312880975,1706399439404,-500.0,0.00027854,2]
[312880976,1706399439412,-500.0,0.00027854,2]
[312880977,1706399439421,-500.0,0.00027854,2]
[312880978,1706399439430,-500.0,0.00027854,2]
[312880979,1706399439439,-531.7902178,0.00027854,2]
[312880980,1706399439448,-500.0,0.00027854,2]
[312880981,1706399439458,-500.0,0.00027854,2]
[312880982,1706399439467,-500.0,0.00027854,2]
[312880983,1706399439476,-443.57107396,0.00027854,2]
[312880984,1706399439484,-300.0,0.00027854,2]
[312880985,1706399439493,-500.0,0.00027854,2]
[312880986,1706399439502,-500.0,0.00027854,2]
[312880987,1706399439512,-500.0,0.00027854,2]
[312880988,1706399439521,-500.0,0.00027854,2]
[312880989,1706399439530,-500.0,0.00027854,2]
[312880990,1706399439539,-500.0,0.00027854,2]
[312880991,1706399439548,-500.0,0.00027854,2]
[312880992,1706399439557,-500.0,0.00027854,2]
[312880993,1706399439567,-500.0,0.00027854,2]
[312880994,1706399439578,-500.0,0.00027854,2]
[312880995,1706399439588,-207.74651376,0.00027854,2]
[312880996,1706399439597,-500.0,0.00027854,2]
[312880997,1706399439608,-500.0,0.00027854,2]
[312880998,1706399439618,-500.0,0.00027854,2]
[312880999,1706399439628,-500.0,0.00027854,2]
[312881000,1706399439637,-500.0,0.00027854,2]
[312881001,1706399439646,-500.0,0.00027854,2]
[312881002,1706399439657,-500.0,0.00027854,2]
[312881003,1706399439667,-500.0,0.00027854,2]
[312881004,1706399439677,-190.08273826,0.00027855,3]
[312881005,1706399439688,-7696.33923264,0.00027855,2]
[312881006,1706399439698,-7449.883539,0.00027855,2]
[312881007,1706399439708,-7449.883539,0.00027855,2]
[312881008,1706399439717,-151.0,0.00027922,2]
[312881009,1706399439727,-158.56416615,0.0002797,2]
[312881010,1706399439737,-200.96358611,0.00028,2]
[312881011,1706399439746,-239.76670397,0.00028,2]
[312881012,1706399439756,-600.0,0.00028,2]
[312881013,1706399439765,-166.92294,0.00028,2]
[312881014,1706399439774,-166.92294,0.00028,2]
[312881015,1706399439783,-151.0,0.00028,2]
[312881016,1706399439793,-1500.0,0.00028,2]
[312881017,1706399439802,-50000.0,0.0002807,5]
[312881018,1706399439812,-151.0,0.0002807,2]
[312881019,1706399439823,-245.0,0.0002807,2]
[312881020,1706399439833,-212.272603,0.0002807,2]
[312881021,1706399439842,-212.272603,0.0002807,2]
[312881022,1706399439851,-151.0,0.0002807,2]
[312881023,1706399439863,-151.0,0.0002807,2]
[312881025,1706399439872,-151.0,0.0002807,2]
[312881027,1706399439881,-151.0,0.0002807,2]
[312881029,1706399439890,-166.92294,0.0002807,2]
[312881031,1706399439899,-166.92294,0.0002807,2]
[312881032,1706399439908,-480.768117,0.0002807,2]
[312881033,1706399439918,-480.768117,0.0002807,2]
[312881034,1706399439927,-3539.968714,0.0002807,2]
[312881035,1706399439938,-3539.968714,0.0002807,2]
[312881036,1706399439947,-151.0,0.0002807,2]
[312881037,1706399439957,-7449.883539,0.0002807,2]
[312881038,1706399439966,-7449.883539,0.0002807,2]
[312881039,1706399439976,-159.42971699,0.0002828,2]
[312881040,1706399439985,-153.0,0.00028493,2]
[312881041,1706399439995,-621.2883991,0.00028644,2]
[312881042,1706399440004,-151.0,0.00028705,2]
[312881043,1706399440014,-155.0,0.00028767,2]
[312881044,1706399440024,-582.267551,0.00028919,2]
[312881046,1706399440033,-151.0,0.00028997,2]
[312881047,1706399440042,-151.0,0.00028997,2]
[312881048,1706399440052,-7449.883539,0.00028997,2]
[312881049,1706399440061,-7449.883539,0.00028997,2]
[312881050,1706399440071,-7449.883539,0.00028997,2]
[312881051,1706399440080,-7449.883539,0.00028997,2]
[312881053,1706399440091,-480.768117,0.00028998,2]
[312881055,1706399440100,-480.768117,0.00028998,2]
[312881057,1706399440109,-480.768117,0.00028998,2]
[312881059,1706399440118,-480.768117,0.00028998,2]
[312881061,1706399440127,-480.768117,0.00028998,2]
[312881063,1706399440136,-480.768117,0.00028998,2]
[312881065,1706399440145,-3539.968714,0.00028998,2]
[312881067,1706399440154,-3539.968714,0.00028998,2]
[312881069,1706399440164,-3539.968714,0.00028998,2]
[312881071,1706399440172,-3539.968714,0.00028998,2]
[312881073,1706399440186,-3539.968714,0.00028998,2]
[312881075,1706399440195,-3539.968714,0.00028998,2]
[312881077,1706399440204,-254.351614,0.00028998,2]
[312881079,1706399440213,-7449.883539,0.00028998,2]
[312881081,1706399440223,-7449.883539,0.00028998,2]
[312881083,1706399440233,-155.02015258,0.00029,2]
[312881085,1706399440241,-1933.42796518,0.00029,2]
[312881087,1706399440251,-458.3251857,0.00029,2]
[312881089,1706399440263,-9132.4701419,0.00029,4]
[312881091,1706399440272,-1000.0,0.00029,2]
[312881093,1706399440282,-309.87175152,0.00029,2]
[312881095,1706399440291,-166.92294,0.00029,2]
[312881097,1706399440300,-166.92294,0.00029,2]
[312881099,1706399440310,-1500.0,0.00029,2]
[312881101,1706399440318,-7449.883539,0.00029,2]
[312881103,1706399440328,-7449.883531,0.00029,2]
[312881105,1706399440337,-861.61515374,0.0002923,2]
[312881107,1706399440346,-2471.53364658,0.00029258,2]
[312881109,1706399440355,-200.0,0.000293,4]
[312881111,1706399440364,-151.0,0.00029487,2]
[312881113,1706399440374,-200.11382695,0.00029999,2]
[312881115,1706399440385,-1827.38712364,0.00029999,2]
[312881116,1706399440395,-151.0,0.00029999,2]
[312881118,1706399440404,-151.0,0.00029999,2]
[312881120,1706399440413,-480.768117,0.00029999,2]
[312881122,1706399440423,-480.768117,0.00029999,2]
[312881124,1706399440433,-3539.968714,0.00029999,2]
[312881127,1706399440443,-3539.968714,0.00029999,2]
[312881129,1706399440453,-309.80429144,0.0003,4]
[312881130,1706399440462,-155.01860223,0.0003,4]
[312881132,1706399440471,-315.0123439,0.0003,4]
[312881134,1706399440481,-60087.20487697,0.0003,4]
[312881137,1706399440491,-309.87922767,0.0003,2]
[312881138,1706399440500,-2079.53980355,0.0003,2]
[312881140,1706399440509,-195.57103754,0.0003,2]
[312881143,1706399440519,-689.09430435,0.0003,4]
[312881145,1706399440528,-4772.09048546,0.0003,2]
[312881146,1706399440537,-155.01860223,0.0003,4]
[312881148,1706399440546,-477.11880077,0.0003,2]
[312881150,1706399440555,-151.0,0.0003,2]